bitfinex/quotes_SOLUSD_20260302
["timestamp","ask_amount","ask_price","bid_price","bid_amount"]
[1772462398902,15.01601036,84.09,84.051,11.89753839]
[1772462399410,14.49015825,84.08,84.051,11.89753839]
[1772462399593,14.49015825,84.08,84.039,0.54288321]
[1772462399793,0.52585211,84.088,84.047,12.90256249]
[1772462399990,29.72476881,84.105,84.06,14.49015825]
[1772462399991,14.49015825,84.1,84.06,14.49015825]
[1772462400196,11.89046503,84.101,84.047,12.90256249]
[1772462400396,14.49015825,84.07,84.048,11.89796306]
[1772462400591,0.52585211,84.116,84.061,0.54288321]
[1772462400823,14.49015825,84.11,84.07,14.49015825]
[1772462401056,14.49015825,84.13,84.081,0.54288321]
[1772462401223,0.52585211,84.139,84.1,14.49015825]
[1772462401528,0.52585211,84.109,84.05,14.49015825]
[1772462401700,14.49015825,84.1,84.06,14.49015825]
[1772462401902,0.28432314,84.127,84.08,14.49015825]
[1772462402206,0.28432314,84.127,84.062,41.63593537]
[1772462402207,14.49015825,84.14,84.1,15.03304146]
[1772462402398,0.52585211,84.149,84.101,0.54288321]
[1772462402616,0.28432314,84.138,84.1,14.49015825]
[1772462402918,0.52585211,84.139,84.1,14.49015825]
[1772462402919,0.28432314,84.139,84.1,14.49015825]
[1772462403101,0.28432314,84.139,84.091,0.54288321]
[1772462403303,0.28432314,84.135,84.091,0.54288321]
[1772462403616,0.52585211,84.166,84.101,0.54288321]
[1772462403817,14.49015825,84.18,84.132,0.54288321]
[1772462404016,11.87944736,84.179,84.132,0.54288321]
[1772462404220,14.49015825,84.17,84.132,0.54288321]
[1772462404521,0.52585211,84.178,84.14,14.49015825]
[1772462404725,0.28432314,84.177,84.131,11.88622505]
[1772462404918,14.49015825,84.18,84.132,0.54288321]
[1772462405222,11.87882784,84.184,84.131,11.88622505]
[1772462405223,12.40467995,84.184,84.131,0.54288321]
[1772462405419,14.49015825,84.18,84.131,0.54288321]
[1772462405619,14.49015825,84.19,84.15,14.49015825]
[1772462405815,4.82477569,84.226,84.115,3.69383402]
[1772462405816,0.52585211,84.227,84.161,0.54288321]
[1772462406037,14.49015825,84.21,84.161,0.54288321]
[1772462406210,14.49015825,84.2,84.152,0.54288321]
[1772462406411,14.49015825,84.22,84.171,0.54288321]
[1772462406634,14.49015825,84.22,84.17,14.49015825]
[1772462406635,0.52585211,84.275,84.181,0.54288321]
[1772462407129,14.49015825,84.23,84.19,14.49015825]
[1772462407335,14.49015825,84.23,84.187,0.54288321]
[1772462407630,14.49015825,84.23,84.19,0.54288321]
[1772462407834,0.52585211,84.239,84.2,14.49015825]
[1772462407835,11.87112704,84.238,84.2,14.49015825]
[1772462408033,14.49015825,84.22,84.18,14.49015825]
[1772462408206,14.49015825,84.21,84.177,11.87972961]
[1772462408409,41.54894465,84.238,84.19,14.49015825]
[1772462408410,14.49015825,84.23,84.19,14.49015825]
[1772462408631,14.49015825,84.2,84.127,0.54288321]
[1772462408818,154.32465155,84.238,84.126,11.8869315]
[1772462408819,0.52585211,84.207,84.16,14.49015825]
[1772462409018,0.28432314,84.189,84.14,14.49015825]
[1772462409225,14.49015825,84.18,84.135,0.54288321]
[1772462409606,0.81017525,84.189,84.141,0.54288321]
[1772462409823,11.87817741,84.188,84.151,11.88340007]
[1772462410026,11.87817741,84.188,84.141,0.54288321]
[1772462410327,14.49015825,84.18,84.142,11.88467115]
[1772462410504,0.28432314,84.197,84.15,15.03304146]
[1772462410709,14.49015825,84.19,84.15,15.03304146]
[1772462410927,0.28432314,84.197,84.151,0.54288321]
[1772462411110,14.49015825,84.19,84.151,0.54288321]
[1772462411312,14.49015825,84.19,84.142,41.59634902]
[1772462411634,14.49015825,84.19,84.141,0.54288321]
[1772462411835,29.6912114,84.2,84.141,0.54288321]
[1772462411836,11.87704879,84.196,84.152,11.88325886]
[1772462412046,0.28432314,84.195,84.153,0.54288321]
[1772462412335,14.49015825,84.19,84.153,0.54288321]
[1772462412708,14.49015825,84.19,84.15,14.49015825]
[1772462412709,14.49015825,84.19,84.147,11.88383601]
[1772462413033,14.49015825,84.19,84.15,14.49015825]
[1772462413205,41.56967076,84.196,84.148,0.54288321]
[1772462413206,14.49015825,84.18,84.148,0.54288321]
[1772462413408,14.49015825,84.17,84.121,0.54288321]
[1772462413608,14.49015825,84.17,84.109,41.61266926]
[1772462413609,14.49015825,84.18,84.131,0.54288321]
[1772462413820,14.49015825,84.19,84.15,14.49015825]
[1772462414023,0.28432314,84.195,84.13,14.49015825]
[1772462414024,0.51627752,84.177,84.13,14.49015825]
[1772462414226,0.51627752,84.168,84.12,14.49015825]
[1772462414407,14.49015825,84.14,84.1,12.37632726]
[1772462414614,14.49015825,84.16,84.111,0.48572084]
[1772462414806,14.49015825,84.15,84.101,0.48572084]
[1772462415007,14.49015825,84.15,84.11,14.49015825]
[1772462415213,14.49015825,84.14,84.1,14.49015825]
[1772462415431,0.51627752,84.149,84.11,14.49015825]
[1772462415735,14.49015825,84.15,84.1,14.49015825]
[1772462415925,14.49015825,84.17,84.13,14.49015825]
[1772462416129,11.8784596,84.186,84.131,0.48572084]
[1772462416433,0.51627752,84.178,84.131,0.48572084]
[1772462416732,14.49015825,84.16,84.122,11.88749673]
[1772462417139,0.51627752,84.129,84.07,0.48572084]
[1772462417437,0.51627752,84.129,84.049,166.5695011]
[1772462417438,14.49015825,84.11,84.065,0.49163972]
[1772462417627,14.49015825,84.11,84.07,14.49015825]
[1772462417940,11.88933407,84.109,84.071,11.89470804]
[1772462418241,0.28432314,84.108,84.071,11.89470804]
[1772462418729,2.47215037,101.11,84.071,11.89470804]
[1772462418730,0.28432314,84.113,84.072,0.49163972]
[1772462418932,0.28432314,84.113,84.047,48.59646527]
[1772462418933,14.49015825,84.1,84.066,11.89528285]
[1772462419236,14.49015825,84.11,84.07,14.98179797]
[1772462419414,14.49015825,84.11,84.07,0.49163972]
[1772462419616,14.49015825,84.09,84.055,0.49163972]
[1772462419919,0.28432314,84.132,84.061,0.49163972]
[1772462420118,14.49015825,84.1,84.061,0.49163972]
[1772462420340,14.49015825,84.08,84.047,1.00448558]
[1772462420520,14.49015825,84.07,84.047,1.00448558]
[1772462420721,14.49015825,84.06,84.032,0.49163972]
[1772462421226,71.24353064,84.219,84.032,0.49163972]
[1772462421227,14.49015825,84.07,84.032,0.49163972]
[1772462421639,71.24353064,84.219,84.032,0.49163972]
[1772462421640,14.49015825,84.08,84.032,0.49163972]
[1772462421821,14.49015825,84.1,84.06,14.49015825]
[1772462422140,14.49015825,84.12,84.072,0.49163972]
[1772462422524,0.07428373,84.116,84.056,0.49163972]
[1772462422727,14.49015825,84.11,84.056,0.49163972]
[1772462422930,14.49015825,84.13,84.081,0.49163972]
[1772462423147,14.49015825,84.1,84.081,0.49163972]
[1772462423334,14.49015825,84.1,84.051,0.49163972]
[1772462423648,0.08236905,84.124,84.051,0.49163972]
[1772462423649,14.49015825,84.08,84.051,0.49163972]
[1772462424017,14.49015825,84.06,84.037,11.89952044]
[1772462424223,14.49015825,84.07,84.037,11.89952044]
[1772462424446,14.49015825,84.07,84.038,0.49163972]
[1772462424618,0.08000228,84.087,84.031,0.49163972]
[1772462424825,14.49015825,84.07,84.032,0.49163972]
[1772462425122,14.49015825,84.06,84.032,0.49163972]
[1772462425840,14.49015825,84.08,84.032,0.49163972]
[1772462426022,47.54633373,84.129,84.043,0.49163972]
[1772462426023,14.49015825,84.09,84.043,0.49163972]
[1772462426219,14.49015825,84.07,84.032,0.49163972]
[1772462426728,0.09363874,84.121,84.033,0.49163972]
[1772462426941,14.49015825,84.09,84.051,0.49163972]
[1772462427244,14.49015825,84.06,84.031,11.9003701]
[1772462427424,4.82477569,84.112,84.007,0.49163972]
[1772462427425,14.49015825,84.04,84.007,0.49163972]
[1772462427739,14.49015825,84.04,84.014,11.90275721]
[1772462428224,14.49015825,84.06,84.022,0.49163972]
[1772462428423,59.45939517,84.091,84.031,0.49163972]
[1772462428424,14.49015825,84.07,84.031,0.49163972]
[1772462428621,14.49015825,84.04,84.014,0.49163972]
[1772462428833,14.49015825,84.05,84.02,0.69163972]
[1772462429032,14.49015825,84.05,84.022,0.49163972]
[1772462429226,41.62157661,84.091,84.02,0.2]
[1772462429227,14.49015825,84.04,84.02,0.2]
[1772462429427,14.49015825,84.05,84.02,0.2]
[1772462429956,14.49015825,84.06,84.021,0.49163972]
[1772462430257,14.49015825,84.07,84.031,0.49163972]
[1772462430423,14.49015825,84.08,84.041,0.49163972]
[1772462430621,11.88749673,84.122,84.061,0.49163972]
[1772462430927,14.49015825,84.11,84.061,0.49163972]
[1772462431242,14.49015825,84.11,84.035,3.69383402]
[1772462431243,14.49015825,84.11,84.071,0.49163972]
[1772462431456,14.49015825,84.1,84.06,14.49015825]
[1772462431742,14.49015825,84.12,84.071,0.49163972]
[1772462432140,14.49015825,84.12,84.093,0.49163972]
[1772462432341,14.49015825,84.12,84.092,11.89173762]
[1772462432646,41.59190026,84.151,84.065,3.69383402]
[1772462432647,11.88340007,84.151,84.091,0.49163972]
[1772462432851,0.09785903,84.182,84.111,0.49163972]
[1772462433032,14.49015825,84.16,84.111,0.49163972]
[1772462433224,14.49015825,84.15,84.111,0.49163972]
[1772462433424,14.49015825,84.16,84.111,0.49163972]
[1772462433745,14.49015825,84.16,84.121,0.49163972]
[1772462433948,47.50237433,84.207,84.082,291.38222209]
[1772462433949,14.49015825,84.17,84.131,0.49163972]
[1772462434141,14.49015825,84.17,84.133,0.49163972]
[1772462434328,11.88085874,84.169,84.133,0.49163972]
[1772462434522,14.49015825,84.16,84.126,11.88679221]
[1772462434831,47.50355078,84.205,84.126,11.88679221]
[1772462434832,14.49015825,84.18,84.141,0.49163972]
[1772462435250,29.68647028,84.214,84.151,0.49163972]
[1772462435545,14.49015825,84.2,84.161,0.49163972]
[1772462435743,14.49015825,84.21,84.161,0.49163972]
[1772462436041,14.49015825,84.2,84.161,0.49163972]
[1772462436242,14.49015825,84.19,84.163,0.49163972]
[1772462436446,14.49015825,84.18,84.148,0.49163972]
[1772462436629,14.49015825,84.16,84.135,0.49163972]
[1772462436825,14.49015825,84.17,84.135,0.49163972]
[1772462437029,14.49015825,84.18,84.135,0.49163972]
[1772462437242,0.28432314,84.198,84.135,0.49163972]
[1772462437243,14.49015825,84.17,84.135,0.49163972]
[1772462437460,14.49015825,84.16,84.125,0.49163972]
[1772462437637,0.10509081,84.198,84.121,0.49163972]
[1772462437945,89.07469209,84.199,84.121,0.49163972]
[1772462437946,0.10509081,84.169,84.121,0.49163972]
[1772462438144,14.49015825,84.15,84.122,11.88749673]
[1772462438347,47.51210402,84.19,84.106,0.49163972]
[1772462438348,14.49015825,84.13,84.106,0.49163972]
[1772462438576,47.51645646,84.182,84.106,0.49163972]
[1772462438577,0.10270458,84.184,84.107,0.49163972]
[1772462438745,14.49015825,84.17,84.121,0.49163972]
[1772462438951,14.49015825,84.17,84.131,0.49163972]
[1772462439449,14.49015825,84.16,84.131,0.49163972]
[1772462439663,14.49015825,84.17,84.131,0.49163972]
[1772462439828,14.49015825,84.17,84.106,148.62194501]
[1772462439829,11.87253644,84.228,84.141,0.49163972]
[1772462440024,71.12952152,84.354,84.191,0.49163972]
[1772462440025,0.11630805,84.253,84.191,0.49163972]
[1772462440245,11.87098612,84.239,84.2,14.49015825]
[1772462440436,94.92732126,84.275,84.192,11.87761307]
[1772462440437,14.49015825,84.26,84.211,0.49163972]
[1772462440628,41.5331672,84.27,84.211,0.49163972]
[1772462440829,14.4813688,84.24,84.211,0.49163972]
[1772462441145,14.4813688,84.24,84.2,14.4813688]
[1772462441328,14.4813688,84.24,84.192,11.87761307]
[1772462441329,14.4813688,84.25,84.211,0.49163972]
[1772462441652,41.5331672,84.27,84.192,41.57164575]
[1772462441653,14.4813688,84.23,84.192,12.36925279]
[1772462441832,14.4813688,84.22,84.192,0.49163972]
[1772462442235,11.87380519,84.219,84.192,0.49163972]
[1772462442440,14.4813688,84.21,84.179,0.49163972]
[1772462442643,14.4813688,84.23,84.191,0.49163972]
[1772462442826,14.4813688,84.23,84.178,11.87958849]
[1772462442827,14.4813688,84.26,84.211,0.49163972]
[1772462443025,14.4813688,84.25,84.211,0.49163972]
[1772462443429,0.12980753,84.268,84.211,0.49163972]
[1772462443430,14.4813688,84.26,84.211,0.49163972]
[1772462443632,0.12980753,84.268,84.211,0.49163972]
[1772462443633,14.4813688,84.25,84.211,0.49163972]
[1772462444226,11.86957708,84.249,84.213,0.49163972]
[1772462444434,106.78651287,84.281,84.213,0.49163972]
[1772462444435,14.4813688,84.26,84.213,0.49163972]
[1772462444632,14.4813688,84.25,84.213,0.49163972]
[1772462444835,14.4813688,84.23,84.199,0.49163972]
[1772462445033,14.4813688,84.23,84.153,47.53227856]
[1772462445034,14.4813688,84.22,84.182,0.49163972]
[1772462445842,14.4813688,84.24,84.2,14.4813688]
[1772462446044,14.4813688,84.23,84.187,0.49163972]
[1772462446244,14.4813688,84.23,84.171,0.49163972]
[1772462446245,14.4813688,84.2,84.171,0.49163972]
[1772462446454,14.4813688,84.2,84.113,47.55495515]
[1772462446455,14.4813688,84.18,84.143,0.49163972]
[1772462446636,14.4813688,84.19,84.143,0.49163972]
[1772462446843,14.4813688,84.18,84.143,0.49163972]
[1772462447044,14.4813688,84.17,84.143,0.49163972]
[1772462447453,0.13836078,84.205,84.121,29.71879255]
[1772462447454,14.4813688,84.16,84.127,11.88670838]
[1772462447645,184.06583617,84.209,84.127,11.88670838]
[1772462447646,14.4813688,84.18,84.13,14.4813688]
[1772462447847,14.4813688,84.15,84.1,14.4813688]
[1772462448152,14.4813688,84.14,84.1,14.4813688]
[1772462448355,14.4813688,84.14,84.09,14.4813688]
[1772462448661,14.4813688,84.12,84.081,11.89317493]
[1772462448844,14.4813688,84.11,84.061,11.89612305]
[1772462449042,14.4813688,84.1,84.061,11.89612305]
[1772462449242,14.4813688,84.11,84.061,11.89612305]
[1772462449441,14.4813688,84.11,84.071,0.51118883]
[1772462449636,14.4813688,84.1,84.061,11.89612305]
[1772462450063,14.4813688,84.1,84.062,0.51118883]
[1772462450363,26.36920891,84.12,84.073,0.51118883]
[1772462450566,14.4813688,84.08,84.05,0.2]
[1772462450739,14.4813688,84.08,84.051,11.89753839]
[1772462450939,14.4813688,84.08,84.05,0.2]
[1772462451154,14.4813688,84.06,84.027,0.51118883]
[1772462451357,14.4813688,84.06,84.011,11.90320315]
[1772462451561,14.4813688,84.07,84.03,14.4813688]
[1772462452358,14.4813688,84.06,84.021,41.65625259]
[1772462452559,14.4813688,84.07,84.03,14.4813688]
[1772462452738,14.4813688,84.07,84.021,41.65625259]
[1772462452938,14.4813688,84.06,84.021,41.65625259]
[1772462453161,41.9083747,84.086,84.021,41.65625259]
[1772462453162,14.4813688,84.07,84.021,41.65625259]
[1772462453462,14.4813688,84.07,84.031,0.51118883]
[1772462453663,14.98887879,84.08,84.031,0.51118883]
[1772462453865,14.4813688,84.08,84.041,0.51118883]
[1772462454160,14.4813688,84.06,84.022,0.51118883]
[1772462454360,14.4813688,84.06,84.023,11.90150315]
[1772462454767,0.50750999,84.079,84.04,14.4813688]
[1772462455265,11.89244472,84.087,84.02,14.4813688]
[1772462455266,0.50750999,84.069,84.02,14.4813688]
[1772462455466,0.50750999,84.049,84.018,11.90216271]
[1772462455654,11.89244472,84.087,84.031,0.51118883]
[1772462455972,0.50750999,84.079,84.031,0.51118883]
[1772462456265,14.4813688,84.07,84.031,0.51118883]
[1772462456444,9.06875343,84.06,84.021,41.65625259]
[1772462457066,9.06875343,84.04,84.008,0.51118883]
[1772462457357,9.06875343,84.02,83.991,11.90603755]
[1772462457569,0.50750999,84.029,83.991,11.90603755]
[1772462457862,9.06875343,84.02,83.991,11.90603755]
[1772462458063,9.06875343,84.03,83.992,0.51118883]
[1772462458359,9.06875343,84.04,83.992,0.51118883]
[1772462458594,0.28432314,84.054,84.001,0.51118883]
[1772462458745,9.06875343,84.05,84.001,0.51118883]
[1772462458943,9.06875343,84.04,83.993,41.67013917]
[1772462459151,0.50750999,84.029,83.993,11.90575405]
[1772462459365,9.06875343,84.04,84.0,9.06875343]
[1772462459566,9.06875343,84.04,83.994,0.51118883]
[1772462459751,9.06875343,84.04,84.001,0.51118883]
[1772462460263,47.55493799,84.114,84.011,0.51118883]
[1772462460466,11.89357627,84.079,84.033,0.51118883]
[1772462460968,14.54315371,84.09,84.041,0.51118883]
[1772462461556,14.54315371,84.09,84.04,14.54315371]
[1772462461557,14.54315371,84.09,84.051,0.51118883]
[1772462461954,14.54315371,84.12,84.08,14.54315371]
[1772462462156,14.54315371,84.12,84.071,0.51118883]
[1772462462668,15.0506637,84.1,84.054,0.51118883]
[1772462462872,14.54315371,84.13,84.09,14.54315371]
[1772462463076,0.50750999,84.176,84.111,0.51118883]
[1772462463378,47.48785988,84.233,84.055,387.84129437]
[1772462463379,14.54315371,84.18,84.131,0.51118883]
[1772462463562,14.54315371,84.18,84.141,0.51118883]
[1772462464078,14.54315371,84.17,84.126,0.51118883]
[1772462464385,14.54315371,84.17,84.131,0.51118883]
[1772462464551,14.54315371,84.17,84.132,11.88608377]
[1772462464757,14.54315371,84.17,84.133,0.51118883]
[1772462464967,14.54315371,84.16,84.118,0.51118883]
[1772462465166,14.54315371,84.16,84.121,11.88763804]
[1772462465368,14.54315371,84.18,84.141,0.51118883]
[1772462465581,14.54315371,84.18,84.121,11.88763804]
[1772462465582,14.54315371,84.16,84.126,0.51118883]
[1772462465889,14.54315371,84.15,84.111,11.88905137]
[1772462466686,11.88001188,84.175,84.12,14.54315371]
[1772462466862,11.88001188,84.175,84.111,11.88905137]
[1772462466863,0.50750999,84.219,84.161,0.51118883]
[1772462467064,0.50750999,84.236,84.181,0.51118883]
[1772462467275,14.54315371,84.2,84.148,0.51118883]
[1772462467488,14.54315371,84.21,84.164,0.51118883]
[1772462467997,14.54315371,84.22,84.181,0.51118883]
[1772462468689,14.54315371,84.2,84.169,11.88072106]
[1772462468990,14.54315371,84.2,84.154,0.51118883]
[1772462468991,14.54315371,84.18,84.141,0.51118883]
[1772462469168,0.79183313,84.204,84.141,0.51118883]
[1772462469369,14.54315371,84.19,84.141,0.51118883]
[1772462469562,14.54315371,84.18,84.141,0.51118883]
[1772462469789,14.54315371,84.2,84.161,0.51118883]
[1772462469986,14.54315371,84.19,84.145,0.51118883]
[1772462470290,14.54315371,84.17,84.124,0.51118883]
[1772462470467,14.54315371,84.16,84.124,0.51118883]
[1772462470673,11.88238309,84.159,84.125,11.8870728]
[1772462470867,29.6968074,84.185,84.131,0.51118883]
[1772462471071,14.54315371,84.18,84.141,0.51118883]
[1772462471990,14.54315371,84.17,84.141,0.51118883]
[1772462472301,14.54315371,84.16,84.115,11.888486]
[1772462472599,14.54315371,84.17,84.131,0.51118883]
[1772462472789,11.88085874,84.169,84.132,11.88608377]
[1772462473087,14.54315371,84.17,84.133,0.51118883]
[1772462473496,14.54315371,84.16,84.133,0.51118883]
[1772462473695,11.88085874,84.169,84.133,0.51118883]
[1772462473888,0.28432314,84.189,84.132,11.88608377]
[1772462473889,14.54315371,84.2,84.16,14.54315371]
[1772462474188,0.53483862,84.227,84.171,0.48589058]
[1772462474489,14.54315371,84.21,84.171,0.48589058]
[1772462474980,14.54315371,84.21,84.16,14.54315371]
[1772462474981,11.87461263,84.214,84.173,0.48589058]
[1772462475167,14.54315371,84.21,84.173,0.48589058]
[1772462475373,11.87098612,84.239,84.191,0.48589058]
[1772462475568,11.87020268,84.245,84.201,0.48589058]
[1772462475772,11.87020268,84.245,84.211,0.48589058]
[1772462475972,0.53483862,84.267,84.211,0.48589058]
[1772462476174,14.54315371,84.26,84.211,0.48589058]
[1772462476489,41.53441319,84.268,84.176,0.48589058]
[1772462476490,14.54315371,84.22,84.176,0.48589058]
[1772462476698,14.54315371,84.22,84.186,0.48589058]
[1772462476891,11.8704881,84.243,84.201,0.48589058]
[1772462477092,0.53483862,84.255,84.201,0.48589058]
[1772462477273,0.53483862,84.255,84.172,47.52174119]
[1772462477274,14.54315371,84.22,84.182,11.87900504]
[1772462477589,14.54315371,84.22,84.171,0.496371]
[1772462478092,0.28432314,84.219,84.171,0.496371]
[1772462478295,14.54315371,84.21,84.171,0.496371]
[1772462478497,14.54315371,84.22,84.181,0.496371]
[1772462478679,14.54315371,84.23,84.191,0.496371]
[1772462478998,11.87239549,84.229,84.191,0.496371]
[1772462479292,11.87239549,84.229,84.176,29.69942068]
[1772462479293,14.54315371,84.22,84.176,0.496371]
[1772462479502,14.54315371,84.24,84.191,0.496371]
[1772462479798,14.54315371,84.24,84.201,0.496371]
[1772462480476,41.5474676,84.241,84.201,0.496371]
[1772462480674,14.54315371,84.24,84.201,0.496371]
[1772462480877,0.49051348,84.219,84.181,11.87916513]
[1772462481077,0.14216157,84.214,84.17,14.54315371]
[1772462481283,0.49051348,84.209,84.17,14.54315371]
[1772462481783,47.46664262,84.27,84.181,0.496371]
[1772462481784,14.54315371,84.23,84.181,0.496371]
[1772462481986,47.47173441,84.261,84.181,0.496371]
[1772462481987,14.54315371,84.22,84.181,0.496371]
[1772462482173,47.47173441,84.261,84.19,14.54315371]
[1772462482174,14.54315371,84.23,84.19,14.54315371]
[1772462482374,14.54315371,84.25,84.201,0.496371]
[1772462482575,0.49051348,84.239,84.19,14.54315371]
[1772462482783,0.49051348,84.239,84.191,0.496371]
[1772462483182,41.54894465,84.238,84.192,11.87761307]
[1772462483377,41.54894465,84.238,84.192,12.37398407]
[1772462483621,11.87112704,84.238,84.201,0.496371]
[1772462483796,14.54315371,84.26,84.201,0.496371]
[1772462483974,14.54315371,84.25,84.201,0.496371]
[1772462484597,0.14216157,84.258,84.201,0.496371]
[1772462484802,9.02875823,84.25,84.201,0.496371]
[1772462484999,0.49051348,84.238,84.2,9.02875823]
[1772462485182,4.82477569,84.263,84.191,11.87775415]
[1772462485183,0.49051348,84.229,84.191,11.87775415]
[1772462485379,0.49051348,84.219,84.152,0.496371]
[1772462485580,0.49051348,84.209,84.167,0.496371]
[1772462485775,9.02875823,84.22,84.18,9.02875823]
[1772462486214,9.02875823,84.23,84.19,9.02875823]
[1772462486501,11.86863113,84.256,84.211,0.496371]
[1772462486801,9.02875823,84.25,84.211,0.496371]
[1772462486998,9.02875823,84.22,84.171,0.496371]
[1772462487213,0.49051348,84.219,84.18,9.02875823]
[1772462487508,11.86863113,84.256,84.171,0.496371]
[1772462487509,0.14216157,84.247,84.2,9.52512923]
[1772462487695,9.02875823,84.24,84.2,9.52512923]
[1772462488080,0.49051348,84.243,84.182,41.57658405]
[1772462488081,4.82477569,84.275,84.211,0.496371]
[1772462488285,11.86563356,84.277,84.221,0.496371]
[1772462488577,0.1,84.33,84.271,0.496371]
[1772462488578,0.1,84.32,84.271,0.496371]
[1772462488788,11.85452131,84.356,84.301,0.496371]
[1772462489085,11.85452131,84.356,84.28,9.02875823]
[1772462489086,9.02875823,84.33,84.28,9.02875823]
[1772462489297,9.02875823,84.3,84.275,3.69383402]
[1772462489487,9.02875823,84.3,84.26,9.02875823]
[1772462489804,9.02875823,84.3,84.26,20.89678576]
[1772462490103,9.02875823,84.29,84.25,9.02875823]
[1772462490303,9.02875823,84.3,84.25,9.02875823]
[1772462490597,9.02875823,84.29,84.249,0.496371]
[1772462490804,0.49051348,84.269,84.187,0.496371]
[1772462490975,0.49051348,84.259,84.211,0.496371]
[1772462491180,9.02875823,84.27,84.231,0.496371]
[1772462491600,9.02875823,84.28,84.24,9.02875823]
[1772462492090,9.02875823,84.27,84.233,0.496371]
[1772462492285,9.02875823,84.28,84.24,9.52512923]
[1772462492481,0.49051348,84.299,84.251,0.496371]
[1772462492693,14.46987821,84.29,84.251,0.496371]
[1772462493078,0.49051348,84.297,84.24,14.46987821]
[1772462493079,14.46987821,84.28,84.24,14.46987821]
[1772462493282,14.46987821,84.29,84.24,14.46987821]
[1772462493499,0.49051348,84.288,84.241,11.87070428]
[1772462493708,14.46987821,84.28,84.241,11.87070428]
[1772462493892,0.49051348,84.288,84.241,11.87070428]
[1772462494088,14.46987821,84.28,84.241,11.87070428]
[1772462494282,0.49051348,84.269,84.23,14.46987821]
[1772462494489,0.49051348,84.269,84.214,0.496371]
[1772462494490,14.46987821,84.26,84.214,0.496371]
[1772462494695,4.82477569,84.293,84.213,41.56127913]
[1772462494696,166.3,84.302,84.251,0.496371]
[1772462494881,14.46987821,84.3,84.261,0.496371]
[1772462495087,14.46987821,84.31,84.27,14.46987821]
[1772462495298,26.33086741,84.31,84.27,14.46987821]
[1772462495619,0.49051348,84.299,84.244,11.87028156]
[1772462495785,14.46987821,84.28,84.241,0.496371]
[1772462495983,14.46987821,84.27,84.226,0.496371]
[1772462496180,14.46987821,84.26,84.215,0.496371]
[1772462496387,14.46987821,84.25,84.215,0.496371]
[1772462496604,0.28432314,84.266,84.22,14.46987821]
[1772462496783,0.28432314,84.266,84.214,11.87451017]
[1772462496784,14.46987821,84.26,84.221,0.496371]
[1772462496981,14.46987821,84.25,84.221,0.496371]
[1772462497184,0.49051348,84.249,84.201,11.87634351]
[1772462497484,14.46987821,84.23,84.201,11.87634351]
[1772462497681,11.87239549,84.229,84.194,11.87733092]
[1772462497902,11.87239549,84.229,84.193,0.496371]
[1772462497903,14.46987821,84.23,84.193,0.496371]
[1772462498091,41.55096495,84.234,84.178,12.37588582]
[1772462498092,14.46987821,84.22,84.178,12.37588582]
[1772462498495,0.49051348,84.222,84.178,12.37588582]
[1772462498496,14.46987821,84.21,84.178,12.37588582]
[1772462498807,14.46987821,84.22,84.18,14.46987821]
[1772462499004,0.28432314,84.229,84.181,0.496371]
[1772462499405,14.46987821,84.22,84.181,0.496371]
[1772462499906,11.87380519,84.219,84.182,11.87902401]
[1772462500207,11.87380519,84.219,84.171,11.88057644]
[1772462500208,14.46987821,84.21,84.171,11.88057644]
[1772462500418,12.15812833,84.219,84.164,0.496371]
[1772462500705,14.50071003,84.19,84.157,0.496371]
[1772462500886,14.50071003,84.21,84.161,0.496371]
[1772462501086,14.50071003,84.2,84.161,0.496371]
[1772462501607,0.49051348,84.218,84.155,0.496371]
[1772462501807,41.55831818,84.219,84.155,0.496371]
[1772462501808,0.49051348,84.216,84.155,0.496371]
[1772462502009,14.50071003,84.21,84.172,11.88043529]
[1772462502320,0.49051348,84.219,84.173,0.496371]
[1772462502321,11.87394618,84.218,84.173,0.496371]
[1772462502614,0.28432314,84.217,84.173,0.496371]
[1772462502983,14.50071003,84.21,84.173,0.496371]
[1772462503590,41.55881164,84.218,84.173,0.496371]
[1772462503899,11.87394618,84.218,84.18,14.99708103]
[1772462504098,11.87325758,84.223,84.19,14.50071003]
[1772462504298,0.49051348,84.209,84.16,14.50071003]
[1772462504502,0.49051348,84.209,84.161,0.496371]
[1772462504995,0.49051348,84.209,84.17,14.50071003]
[1772462505189,14.50071003,84.21,84.161,0.496371]
[1772462505715,14.50071003,84.23,84.191,0.496371]
[1772462506017,11.87239549,84.229,84.192,11.87761307]
[1772462506510,11.87239549,84.229,84.191,0.496371]
[1772462506717,14.50071003,84.21,84.164,0.496371]
[1772462507013,14.50071003,84.21,84.171,0.496371]
[1772462507199,14.50071003,84.23,84.191,0.496371]
[1772462507724,11.87176929,84.234,84.143,11.8845299]
[1772462507725,0.10088918,84.198,84.143,11.8845299]
[1772462507921,0.10088918,84.198,84.105,47.55932598]
[1772462507922,14.50071003,84.16,84.131,11.88621995]
[1772462508590,14.50071003,84.16,84.131,12.35511318]
[1772462508792,14.50071003,84.16,84.131,0.46889323]
[1772462509009,41.57806578,84.179,84.071,47.57832796]
[1772462509010,14.50071003,84.14,84.1,0.46889323]
[1772462509188,14.50071003,84.14,84.101,0.46889323]